bitfinex-derivatives/quotes_BTCF0:USTF0_20250509
["timestamp","ask_amount","ask_price","bid_price","bid_amount"]
[1746817938608,0.67595316,103330.0,103320.0,0.5436]
[1746817939409,0.52813117,103330.0,103320.0,0.5436]
[1746817939811,0.84813117,103330.0,103320.0,0.5436]
[1746817940309,0.7383349,103330.0,103320.0,0.5436]
[1746817940509,0.84813117,103330.0,103320.0,0.5436]
[1746817942512,0.52813117,103330.0,103320.0,0.5436]
[1746817942811,0.88813117,103330.0,103320.0,0.5436]
[1746817943013,1.03595316,103330.0,103320.0,0.5436]
[1746817943308,1.03595316,103330.0,103320.0,0.3836]
[1746817944615,0.92615689,103330.0,103320.0,0.3836]
[1746817944815,0.59615689,103330.0,103320.0,0.3836]
[1746817945114,0.70595316,103330.0,103320.0,0.5436]
[1746817945413,0.90595316,103330.0,103320.0,0.5436]
[1746817945809,0.75813117,103330.0,103320.0,0.5436]
[1746817946717,0.52813117,103330.0,103320.0,0.5436]
[1746817946919,0.76813117,103330.0,103320.0,0.5436]
[1746817947915,0.56813117,103330.0,103320.0,0.5436]
[1746817948117,0.73813117,103330.0,103320.0,0.5436]
[1746817949316,0.88595316,103330.0,103320.0,0.5436]
[1746817950607,0.67595316,103330.0,103320.0,0.5436]
[1746817952718,0.52813117,103330.0,103320.0,0.5436]
[1746817955917,0.67595316,103330.0,103320.0,0.5436]
[1746817964315,0.67595316,103330.0,103320.0,0.5113]
[1746817964616,0.0329,103320.0,103280.0,0.14839457]
[1746817964815,0.47059627,103290.0,103280.0,0.26904226]
[1746817965118,1.15853617,103290.0,103280.0,0.53144226]
[1746817965320,1.25353617,103290.0,103280.0,0.53144226]
[1746817966118,0.89273617,103290.0,103280.0,0.69544226]
[1746817966519,0.89273617,103290.0,103280.0,1.05624226]
[1746817966706,0.7829399,103290.0,103280.0,0.69544226]
[1746817966910,0.89273617,103290.0,103280.0,0.69544226]
[1746817967117,0.89273617,103290.0,103280.0,0.71006824]
[1746817967621,0.89373617,103290.0,103280.0,0.71606824]
[1746817968520,0.89373617,103290.0,103280.0,0.56912598]
[1746817968815,1.25453617,103290.0,103280.0,0.5545]
[1746817969419,1.37861617,103290.0,103280.0,0.5545]
[1746817969618,1.38816586,103290.0,103280.0,0.5545]
[1746817969820,1.44589284,103290.0,103280.0,0.5545]
[1746817970020,1.61341609,103290.0,103280.0,0.5545]
[1746817970212,1.44589284,103290.0,103280.0,0.5224]
[1746817970617,1.62067609,103290.0,103280.0,0.5224]
[1746817974021,1.45315284,103290.0,103280.0,0.5224]
[1746817974230,1.45315284,103290.0,103280.0,0.5535]
[1746817976723,1.28562959,103290.0,103280.0,0.5535]
[1746817976926,1.45315284,103290.0,103280.0,0.5535]
[1746817981423,1.28562959,103290.0,103280.0,0.5535]
[1746817981728,1.45315284,103290.0,103280.0,0.5535]
[1746817982627,1.62067609,103290.0,103280.0,0.5535]
[1746817982832,1.62067609,103290.0,103280.0,0.49]
[1746817983223,1.62067609,103290.0,103280.0,0.33]
[1746817983418,1.98147609,103290.0,103280.0,1e-07]
[1746817983624,0.1936574,103270.0,103260.0,0.39567037]
[1746817983826,0.48754065,103270.0,103260.0,0.42637037]
[1746817984020,0.70416065,103270.0,103260.0,0.78637037]
[1746817984234,0.98416065,103270.0,103260.0,0.94637037]
[1746817984530,0.98416065,103270.0,103260.0,0.58557037]
[1746817984730,0.98516065,103270.0,103260.0,0.59457037]
[1746817985724,0.98516065,103270.0,103260.0,0.60157037]
[1746817986127,0.98716065,103270.0,103260.0,0.59457037]
[1746817986326,0.98816065,103270.0,103260.0,0.58557037]
[1746817986834,0.8206374,103270.0,103260.0,0.58557037]
[1746817987024,0.98816065,103270.0,103260.0,0.58557037]
[1746817987632,0.98816065,103270.0,103260.0,0.52397037]
[1746817988832,1.02106065,103270.0,103260.0,0.52397037]
[1746817990733,1.02106065,103270.0,103260.0,0.58727037]
[1746817991837,0.963522,103270.0,103260.0,0.58727037]
[1746817992037,0.5735374,103270.0,103260.0,0.94807037]
[1746817992330,0.2929574,103270.0,103260.0,1.14174647]
[1746817992633,0.4294974,103270.0,103260.0,0.96457037]
[1746817992824,0.539482,103270.0,103260.0,0.94807037]
[1746817993030,0.570982,103270.0,103260.0,0.94807037]
[1746817993324,0.570982,103270.0,103260.0,0.58727037]
[1746817995738,0.62856989,103270.0,103260.0,0.58727037]
[1746818002641,0.4609974,103270.0,103260.0,0.58727037]
[1746818002838,0.62856989,103270.0,103260.0,0.58727037]
[1746818012953,0.4609974,103270.0,103260.0,0.58727037]
[1746818013257,0.62856989,103270.0,103260.0,0.58727037]
[1746818014048,0.81856989,103270.0,103260.0,0.58727037]
[1746818015751,0.76097542,103270.0,103260.0,0.58727037]
[1746818017151,0.6509974,103270.0,103260.0,0.58727037]
[1746818017353,0.76097542,103270.0,103260.0,0.58727037]
[1746818019250,0.87095344,103270.0,103260.0,0.58727037]
[1746818019451,0.76097542,103270.0,103260.0,0.55507037]
[1746818019656,0.87095344,103270.0,103260.0,0.55507037]
[1746818019857,0.76097542,103270.0,103260.0,0.55507037]
[1746818021956,0.76097542,103270.0,103260.0,0.55525633]
[1746818024366,0.76097542,103270.0,103260.0,0.58645633]
[1746818025960,0.63169542,103270.0,103260.0,0.58645633]
[1746818026165,0.75869542,103270.0,103260.0,0.58645633]
[1746818035369,0.88609542,103270.0,103260.0,0.58645633]
[1746818040169,0.63169542,103270.0,103260.0,0.94725633]
[1746818040374,0.63169542,103270.0,103260.0,0.58645633]
[1746818040375,0.88557542,103270.0,103260.0,0.58645633]
[1746818040871,0.88549542,103270.0,103260.0,0.58645633]
[1746818041469,0.4581174,103270.0,103260.0,1.25091045]
[1746818041666,0.2378174,103270.0,103260.0,1.26741045]
[1746818041972,0.2378174,103270.0,103260.0,1.36424868]
[1746818042876,0.2378174,103270.0,103260.0,1.25427066]
[1746818044569,0.2696174,103270.0,103260.0,1.25427066]
[1746818045070,0.3026174,103270.0,103260.0,1.25427066]
[1746818045674,0.2697174,103270.0,103260.0,1.25427066]
[1746818046169,0.37969542,103270.0,103260.0,1.06059456]
[1746818046369,0.84967344,103270.0,103260.0,0.94725633]
[1746818046561,0.77239542,103270.0,103260.0,0.94725633]
[1746818047373,0.41239542,103270.0,103260.0,0.94725633]
[1746818047574,0.42239542,103270.0,103260.0,0.94725633]
[1746818056066,0.42239542,103270.0,103260.0,0.58645633]
[1746818056381,0.84237344,103270.0,103260.0,0.52415633]
[1746818057080,0.73239542,103270.0,103260.0,0.52415633]
[1746818057683,0.76529542,103270.0,103260.0,0.52415633]
[1746818059981,0.6553174,103270.0,103260.0,0.52415633]
[1746818060169,0.76529542,103270.0,103260.0,0.55545633]
[1746818062484,0.45529542,103270.0,103260.0,0.55545633]
[1746818062976,0.55527344,103270.0,103260.0,0.52415633]
[1746818063182,0.89527344,103270.0,103260.0,0.52415633]
[1746818063783,0.78529542,103270.0,103260.0,0.52415633]
[1746818063978,0.78529542,103270.0,103260.0,0.52515633]
[1746818064173,0.1937136,103240.0,103230.0,0.0054245]
[1746818064376,0.53982964,103240.0,103230.0,0.0374245]
[1746818064679,0.57062964,103240.0,103230.0,0.3974245]
[1746818064879,0.60242964,103240.0,103230.0,0.3974245]
[1746818065181,0.60242964,103240.0,103230.0,0.5574245]
[1746818065484,0.49245162,103240.0,103230.0,0.5574245]
[1746818065687,0.52525162,103240.0,103230.0,0.5916245]
[1746818065985,0.58295084,103240.0,103230.0,0.5916245]
[1746818066281,0.74295084,103240.0,103230.0,0.5936245]
[1746818066483,0.91295084,103240.0,103230.0,0.59217152]
[1746818066885,0.92278167,103240.0,103230.0,0.59217152]
[1746818069688,0.93004167,103240.0,103230.0,0.59217152]
[1746818072590,0.93004167,103240.0,103230.0,0.56017152]
[1746818073286,0.93004167,103240.0,103230.0,0.52897152]
[1746818074491,0.93004167,103240.0,103230.0,0.56037152]
[1746818075683,0.96294167,103240.0,103230.0,0.59247152]
[1746818077496,0.64294167,103240.0,103230.0,0.59247152]
[1746818077995,1.00294167,103240.0,103230.0,0.59247152]
[1746818081987,1.36374167,103240.0,103230.0,0.59247152]
[1746818084199,1.36374167,103240.0,103230.0,0.56037152]
[1746818085096,1.53141891,103240.0,103230.0,0.49057242]
[1746818085291,1.53141891,103240.0,103230.0,0.46303922]
[1746818085500,1.53141891,103240.0,103230.0,0.43417242]
[1746818085698,1.53141891,103240.0,103230.0,0.39720732]
[1746818085897,1.36374167,103240.0,103230.0,0.39720732]
[1746818087902,1.41620133,103240.0,103230.0,0.39720732]
[1746818089000,1.19606443,103240.0,103230.0,0.39720732]
[1746818089202,1.41620133,103240.0,103230.0,0.42990732]
[1746818089506,1.41620133,103240.0,103230.0,0.46240732]
[1746818097000,1.41620133,103240.0,103230.0,0.2302]
[1746818097199,1.41620133,103240.0,103230.0,0.5502]
[1746818097400,1.19606443,103240.0,103230.0,0.5502]
[1746818097604,1.41620133,103240.0,103230.0,0.5502]
[1746818098403,1.19606443,103240.0,103230.0,0.5502]
[1746818098709,1.41620133,103240.0,103230.0,0.5502]
[1746818100804,1.41520133,103240.0,103230.0,0.5472]
[1746818101009,1.41720133,103240.0,103230.0,0.5452]
[1746818101197,1.41820133,103240.0,103230.0,0.5452]
[1746818106905,1.29204133,103240.0,103230.0,0.5452]
[1746818107110,1.31585288,103240.0,103230.0,0.5452]
[1746818107408,1.42592133,103240.0,103230.0,0.5452]
[1746818109918,1.20578443,103240.0,103230.0,0.5452]
[1746818110121,1.42592133,103240.0,103230.0,0.5452]
[1746818111215,1.20578443,103240.0,103230.0,0.45393]
[1746818111417,1.53598978,103240.0,103230.0,0.42123]
[1746818111604,1.53598978,103240.0,103230.0,0.3174594]
[1746818111804,1.42592133,103240.0,103230.0,0.1621298]
[1746818112011,0.1937699,103210.0,103200.0,0.11875956]
[1746818112217,0.4715299,103210.0,103200.0,0.50597267]
[1746818112519,0.8550699,103210.0,103200.0,0.50597267]
[1746818113012,0.96513835,103210.0,103200.0,0.50597267]
[1746818113215,0.96513835,103210.0,103200.0,0.66597267]
[1746818113420,0.96613835,103210.0,103200.0,0.70297267]
[1746818114016,0.8560699,103210.0,103200.0,0.70297267]
[1746818114217,0.96613835,103210.0,103200.0,0.70297267]
[1746818114419,0.8560699,103210.0,103200.0,0.70697267]
[1746818114611,0.99893835,103210.0,103200.0,0.70697267]
[1746818116123,0.8888699,103210.0,103200.0,0.70697267]
[1746818116420,0.99893835,103210.0,103200.0,0.70697267]
[1746818117025,0.8888699,103210.0,103200.0,0.70697267]
[1746818117223,0.8961299,103210.0,103200.0,0.70697267]
[1746818117432,1.00619835,103210.0,103200.0,0.70697267]
[1746818117631,1.03909835,103210.0,103200.0,0.70697267]
[1746818120537,1.39989835,103210.0,103200.0,0.70697267]
[1746818120733,0.1938263,103180.0,103170.0,0.00397383]
[1746818120937,1.17925475,103180.0,103170.0,0.39047383]
[1746818121140,1.51497475,103180.0,103170.0,0.37397383]
[1746818121437,1.51497475,103180.0,103170.0,0.38864933]
[1746818121834,1.57377251,103180.0,103170.0,0.39664933]
[1746818122029,1.57377251,103180.0,103170.0,0.43754933]
[1746818122030,1.60667251,103180.0,103170.0,0.43754933]
[1746818122230,1.47737251,103180.0,103170.0,0.62844933]
[1746818122538,1.48685293,103180.0,103170.0,0.62844933]
[1746818122932,1.50135508,103180.0,103170.0,0.62844933]
[1746818123129,1.50135508,103180.0,103140.0,0.34965559]
[1746818123130,0.1938826,103150.0,103140.0,0.34965559]
[1746818123335,1.33090881,103150.0,103140.0,0.74055559]
[1746818123537,1.2580426,103150.0,103140.0,0.77245559]
[1746818123740,1.2261426,103150.0,103140.0,0.77245559]
[1746818124244,0.9161426,103150.0,103140.0,0.93245559]
[1746818124739,0.2038826,103150.0,103140.0,1.6600232]
[1746818124942,0.7967424,103160.0,103150.0,0.1938826]
[1746818125241,0.4359424,103160.0,103150.0,1.1134826]
[1746818125438,0.4359424,103160.0,103150.0,0.9196]
[1746818125633,0.4359424,103160.0,103150.0,1.08746621]
[1746818126033,0.4359424,103160.0,103150.0,1.00866621]
[1746818126239,0.1939014,103140.0,103130.0,0.24691473]
[1746818126535,1.73256761,103140.0,103130.0,0.52003703]
[1746818126739,0.1939202,103130.0,103120.0,0.0623]
[1746818126933,1.0102202,103130.0,103120.0,0.4423]
[1746818127134,1.0102202,103130.0,103120.0,0.6023]
[1746818127545,0.6502202,103130.0,103120.0,0.2223]
[1746818128038,0.6502202,103130.0,103120.0,0.5723]
[1746818128245,0.6173202,103130.0,103120.0,0.74116621]
[1746818128640,0.6173202,103130.0,103120.0,0.5733]
[1746818128844,0.6183202,103130.0,103120.0,0.5733]
[1746818129147,0.9096402,103130.0,103120.0,0.5733]
[1746818129843,0.91948484,103130.0,103120.0,0.5733]
[1746818132241,1.38975105,103130.0,103120.0,0.5733]
[1746818132441,1.22188484,103130.0,103120.0,0.5733]
[1746818132649,1.22188484,103130.0,103120.0,0.2233]
[1746818133036,1.38975105,103130.0,103120.0,0.2233]
[1746818133242,1.22188484,103130.0,103120.0,0.4333]
[1746818133437,1.38975105,103130.0,103120.0,0.0633]
[1746818133644,1.22188484,103130.0,103120.0,0.0633]
[1746818134039,1.38975105,103130.0,103120.0,0.0633]
[1746818134438,1.22188484,103130.0,103120.0,0.0633]
[1746818134851,1.38975105,103130.0,103120.0,0.0633]
[1746818135149,1.54975105,103130.0,103120.0,0.0633]
[1746818135538,1.54975105,103130.0,103120.0,0.01616089]
[1746818135943,1.18895105,103130.0,103120.0,0.01616089]
[1746818136143,1.91055105,103130.0,103120.0,0.01616089]
[1746818136346,1.74268484,103130.0,103120.0,0.01616089]
[1746818136649,1.91055105,103130.0,103120.0,0.01616089]
[1746818137043,1.74268484,103130.0,103120.0,0.35616089]
[1746818137242,1.75055105,103130.0,103120.0,0.41936089]
[1746818137451,1.49055105,103130.0,103120.0,0.41936089]
[1746818137653,1.32268484,103130.0,103120.0,0.41936089]
[1746818137948,1.49055105,103130.0,103120.0,0.41936089]
[1746818138342,1.49055105,103130.0,103120.0,0.07936089]
[1746818138543,1.32268484,103130.0,103120.0,0.44936089]
[1746818138851,1.49055105,103130.0,103120.0,0.07936089]
[1746818139151,1.32268484,103130.0,103120.0,0.07936089]
[1746818139351,1.49055105,103130.0,103120.0,0.43936089]
[1746818139851,1.49055105,103130.0,103120.0,0.45936089]
[1746818140053,1.84055105,103130.0,103120.0,0.45936089]
[1746818141653,1.67268484,103130.0,103120.0,0.45936089]
[1746818141841,1.84055105,103130.0,103120.0,0.45936089]
[1746818142045,1.67268484,103130.0,103120.0,0.07936089]
[1746818142247,1.84055105,103130.0,103120.0,0.42936089]
[1746818142553,1.84055105,103130.0,103120.0,0.44936089]
[1746818143147,1.84055105,103130.0,103120.0,0.60936089]
[1746818143546,1.52516484,103130.0,103120.0,0.60936089]
[1746818143856,1.34164484,103130.0,103120.0,0.60936089]
[1746818144048,1.16516484,103130.0,103120.0,0.60936089]
[1746818144356,1.30912484,103130.0,103120.0,0.60936089]
[1746818144858,1.34162484,103130.0,103120.0,0.60936089]
[1746818145248,1.34162484,103130.0,103120.0,0.23936089]
[1746818145654,1.34162484,103130.0,103120.0,0.58936089]
[1746818146058,1.02146484,103130.0,103120.0,0.58936089]
[1746818146259,1.16532484,103130.0,103120.0,0.58936089]
[1746818146859,1.19732484,103130.0,103120.0,0.58936089]
[1746818147252,1.20132484,103130.0,103120.0,0.58936089]
[1746818147451,1.20532484,103130.0,103120.0,0.58936089]
[1746818148859,1.37319105,103130.0,103120.0,0.55936089]
[1746818149664,1.37319105,103130.0,103120.0,0.23936089]
[1746818150058,1.37319105,103130.0,103120.0,0.60936089]
[1746818150359,1.37319105,103130.0,103120.0,0.59936089]
[1746818152065,1.37319105,103130.0,103120.0,0.23936089]
[1746818152361,1.37319105,103130.0,103120.0,0.59936089]
[1746818152560,1.37319105,103130.0,103120.0,0.23936089]
[1746818152763,1.37319105,103130.0,103120.0,0.60936089]
[1746818153159,1.20532484,103130.0,103120.0,0.60936089]
[1746818153466,1.37319105,103130.0,103120.0,0.60936089]
[1746818154265,1.20532484,103130.0,103120.0,0.60936089]
[1746818154459,1.39532484,103130.0,103120.0,0.60936089]
[1746818154660,1.39532484,103130.0,103120.0,0.23936089]
[1746818155066,1.39532484,103130.0,103120.0,0.61936089]
[1746818155569,1.39532484,103130.0,103120.0,0.23936089]
[1746818155762,1.39532484,103130.0,103120.0,0.59936089]
[1746818156271,1.56319105,103130.0,103120.0,0.23936089]
[1746818156467,1.56319105,103130.0,103120.0,0.17616089]
[1746818156671,1.56319105,103130.0,103120.0,0.20856089]
[1746818157257,1.56319105,103130.0,103120.0,0.04856089]
[1746818157456,1.39532484,103130.0,103120.0,0.04856089]
[1746818157874,1.56319105,103130.0,103120.0,0.04856089]
[1746818159577,1.56319105,103130.0,103120.0,0.01616089]
[1746818159966,1.56319105,103130.0,103120.0,0.04896089]
[1746818160167,1.56319105,103130.0,103120.0,0.20896089]
[1746818161263,1.56319105,103130.0,103120.0,0.04896089]
[1746818161473,1.39532484,103130.0,103120.0,0.04896089]
[1746818161670,1.56319105,103130.0,103120.0,0.04896089]
[1746818162277,1.39532484,103130.0,103120.0,0.35896089]
[1746818162468,1.56319105,103130.0,103120.0,0.04896089]
[1746818162670,1.39532484,103130.0,103120.0,0.04896089]
[1746818162874,1.56319105,103130.0,103120.0,0.38896089]
[1746818163178,1.56319105,103130.0,103120.0,0.54896089]
[1746818163478,1.56319105,103130.0,103120.0,0.57926089]
[1746818164178,1.56319105,103130.0,103120.0,0.41926089]
[1746818164672,1.56319105,103130.0,103120.0,0.07926089]
[1746818166088,1.56319105,103130.0,103120.0,0.01616089]
[1746818166266,1.59609105,103130.0,103120.0,0.01616089]
[1746818167278,1.59609105,103130.0,103120.0,0.001]
[1746818168674,1.42822484,103130.0,103120.0,0.001]
[1746818168979,1.59609105,103130.0,103120.0,0.001]
[1746818170080,1.42822484,103130.0,103120.0,0.001]
[1746818170281,1.59609105,103130.0,103120.0,0.161]
[1746818171186,1.59609105,103130.0,103120.0,0.001]
[1746818173080,1.75609105,103130.0,103120.0,0.001]
[1746818174081,1.58822484,103130.0,103120.0,0.001]
[1746818174279,1.59609105,103130.0,103120.0,0.001]
[1746818175779,0.87449105,103130.0,103120.0,0.001]
[1746818176087,1.59609105,103130.0,103120.0,0.001]
[1746818176480,1.59678484,103130.0,103120.0,0.001]
[1746818176679,1.76465105,103130.0,103120.0,0.001]
[1746818176977,1.76465105,103130.0,103120.0,0.321]
[1746818179978,1.76465105,103130.0,103120.0,0.32121761]
[1746818180588,1.77192105,103130.0,103120.0,0.32121761]
[1746818183788,1.77192105,103130.0,103120.0,0.33592044]
[1746818184491,1.76902105,103130.0,103120.0,0.33592044]
[1746818184790,0.193939,103120.0,103110.0,0.00397614]
[1746818184990,1.5306284,103120.0,103110.0,0.31397614]
[1746818185185,1.5306284,103120.0,103110.0,0.47397614]
[1746818185882,1.36476219,103120.0,103110.0,0.47497614]
[1746818186081,1.36876219,103120.0,103110.0,0.47497614]
[1746818186983,1.36876219,103120.0,103110.0,0.50677614]
[1746818187290,1.36876219,103120.0,103110.0,0.47497614]
[1746818189293,1.36876219,103120.0,103110.0,0.31497614]
[1746818189493,1.38349384,103120.0,103110.0,0.31497614]
[1746818189680,2.51235384,103120.0,103110.0,0.31497614]
[1746818190090,2.51235384,103120.0,103110.0,0.47497614]
[1746818190487,2.51235384,103120.0,103110.0,0.50657614]
[1746818191287,2.51235384,103120.0,103110.0,0.53907614]
[1746818192595,2.67951384,103120.0,103110.0,0.53907614]
[1746818196699,2.64889384,103120.0,103110.0,0.53907614]
[1746818196899,2.81453384,103120.0,103110.0,0.53907614]
[1746818197101,2.81453384,103120.0,103110.0,0.55557614]
[1746818198599,2.81453384,103120.0,103110.0,0.53907614]
[1746818199695,2.46629598,103120.0,103110.0,0.53907614]
[1746818199891,2.79860219,103120.0,103110.0,0.55557614]
[1746818202400,2.63073598,103120.0,103110.0,0.55557614]
[1746818202604,2.79860219,103120.0,103110.0,0.55557614]
[1746818203497,2.79860219,103120.0,103110.0,0.53907614]
[1746818203891,2.83110219,103120.0,103110.0,0.53907614]
[1746818204094,2.83110219,103120.0,103110.0,0.37907614]
[1746818205300,2.49962219,103120.0,103110.0,0.37907614]
[1746818205495,2.83018219,103120.0,103110.0,0.37907614]
[1746818205900,2.83018219,103120.0,103110.0,0.3937131]
[1746818206204,2.83018219,103120.0,103110.0,0.5537131]
[1746818207203,2.89392934,103120.0,103110.0,0.5537131]
[1746818208606,2.90859378,103120.0,103110.0,0.5537131]
[1746818208802,1.74683378,103120.0,103110.0,0.5537131]
[1746818209607,1.68308663,103120.0,103110.0,0.5537131]
[1746818210707,1.71598663,103120.0,103110.0,0.5537131]
[1746818211120,1.38542663,103120.0,103110.0,0.5537131]
[1746818211304,1.35014344,103120.0,103110.0,0.5537131]
[1746818211607,1.35050344,103120.0,103110.0,0.5537131]
[1746818211803,1.16836965,103120.0,103110.0,0.5702131]
[1746818212410,1.16836965,103120.0,103110.0,0.55557614]
[1746818213304,1.00050344,103120.0,103110.0,0.55557614]
[1746818213611,1.13546965,103120.0,103110.0,0.55557614]
[1746818215809,0.96760344,103120.0,103110.0,0.55557614]
[1746818216012,0.96760344,103120.0,103110.0,0.53907614]
[1746818216411,1.01760344,103120.0,103110.0,0.53907614]
[1746818216914,1.18546965,103120.0,103110.0,0.53907614]
[1746818217207,1.01760344,103120.0,103110.0,0.53907614]
[1746818218312,1.21760344,103120.0,103110.0,0.53907614]
[1746818218617,0.97760344,103120.0,103110.0,0.53907614]
[1746818218812,0.96912344,103120.0,103110.0,0.53907614]
[1746818219017,0.96912344,103120.0,103110.0,0.55567614]
[1746818220109,0.58540344,103120.0,103110.0,0.72354235]
[1746818220313,0.57540344,103120.0,103110.0,0.55567614]
[1746818220605,0.60620344,103120.0,103110.0,0.55567614]
[1746818220811,0.63930344,103120.0,103110.0,0.55567614]
[1746818221708,0.80716965,103120.0,103110.0,0.53907614]
[1746818221914,1.20976965,103120.0,103110.0,0.53907614]
[1746818222110,1.20976965,103120.0,103110.0,0.37907614]
[1746818226515,1.57056965,103120.0,103110.0,0.37907614]
[1746818230213,1.57056965,103120.0,103110.0,0.53907614]
[1746818230910,1.40270344,103120.0,103110.0,0.53907614]
[1746818231106,1.40270344,103120.0,103110.0,0.37907614]
[1746818231307,1.40670344,103120.0,103110.0,0.37907614]
[1746818231516,1.40270344,103120.0,103110.0,0.37807614]
[1746818231720,1.41070344,103120.0,103110.0,0.37907614]
[1746818232114,1.41070344,103120.0,103110.0,0.53907614]
[1746818232512,1.57856965,103120.0,103110.0,0.53907614]
[1746818232912,1.58583965,103120.0,103110.0,0.55402424]
[1746818233421,1.58583965,103120.0,103110.0,0.39402424]
[1746818234018,1.58583965,103120.0,103110.0,0.37907614]
[1746818234219,1.58583965,103120.0,103110.0,0.39402473]
[1746818235928,1.52826984,103120.0,103110.0,0.39402473]
[1746818236229,1.52826984,103120.0,103110.0,0.53907614]
[1746818237128,1.52826984,103120.0,103110.0,0.37907614]
[1746818237318,1.41797344,103120.0,103110.0,0.37907614]
[1746818237727,1.52826984,103120.0,103110.0,0.37907614]
[1746818239933,1.41797344,103120.0,103110.0,0.37907614]
[1746818240134,1.52826984,103120.0,103110.0,0.37907614]
[1746818243628,1.63856624,103120.0,103110.0,0.31497614]
[1746818243936,0.1939579,103110.0,103100.0,0.1]
[1746818244141,1.5321343,103110.0,103100.0,0.48467972]
[1746818244736,1.5321343,103110.0,103100.0,0.11467972]
[1746818244937,1.5321343,103110.0,103100.0,0.45467972]
[1746818245139,1.3741343,103110.0,103100.0,0.61467972]
[1746818247338,1.4108343,103110.0,103100.0,0.61467972]
[1746818248141,1.3005379,103110.0,103100.0,0.61467972]
[1746818248327,0.9846579,103110.0,103100.0,0.64487972]
[1746818248531,0.9656179,103110.0,103100.0,0.78537612]
[1746818248734,0.9353179,103110.0,103100.0,0.78537612]
[1746818249042,0.9351979,103110.0,103100.0,0.78537612]
[1746818249535,0.9351979,103110.0,103100.0,0.69705963]
[1746818251744,0.9351979,103110.0,103100.0,0.69706289]
[1746818251948,0.7801579,103110.0,103100.0,0.78585929]
[1746818252244,0.9342779,103110.0,103100.0,0.80735929]
[1746818253246,0.9342779,103110.0,103100.0,0.7921964]
[1746818253437,0.9342779,103110.0,103100.0,0.80735866]
[1746818253740,0.9342779,103110.0,103100.0,0.7921964]
[1746818253945,0.9342779,103110.0,103100.0,0.6819]
[1746818254444,0.6243579,103110.0,103100.0,0.6819]
[1746818256345,0.6243579,103110.0,103100.0,0.7921964]
[1746818256846,0.6243579,103110.0,103100.0,0.6819]
[1746818258949,0.6243579,103110.0,103100.0,0.6604]
[1746818259444,0.6543579,103110.0,103100.0,0.6604]
[1746818260247,0.6543579,103110.0,103100.0,0.5004]
[1746818260543,0.6543579,103110.0,103100.0,0.6106964]
[1746818261139,0.6543579,103110.0,103100.0,0.7706964]
[1746818261337,0.6543579,103110.0,103100.0,0.6604]
[1746818262243,0.6543579,103110.0,103100.0,0.3204]
[1746818262443,0.6243579,103110.0,103100.0,0.5143767]
[1746818262744,0.6243579,103110.0,103100.0,0.5358767]
[1746818263142,0.6243579,103110.0,103100.0,0.3419]
[1746818264550,0.6243579,103110.0,103100.0,0.3204]
[1746818266949,0.6243579,103110.0,103100.0,0.3704]
[1746818267550,0.6547579,103110.0,103100.0,0.3704]
[1746818270448,0.6547579,103110.0,103100.0,0.3204]
[1746818270645,0.6547579,103110.0,103100.0,0.5804]
[1746818271247,0.6547579,103110.0,103100.0,0.4204]
[1746818273155,0.6547579,103110.0,103100.0,0.5804]
[1746818274160,0.6547579,103110.0,103100.0,0.4204]
[1746818275651,0.6547579,103110.0,103100.0,0.1604]
[1746818275652,0.7650543,103110.0,103100.0,0.1604]
[1746818276255,0.6547579,103110.0,103100.0,0.1604]
[1746818282162,0.6547579,103110.0,103100.0,0.3204]
[1746818283167,0.6547579,103110.0,103100.0,0.1604]
[1746818284159,0.6547579,103110.0,103100.0,0.3204]
[1746818284566,0.6547579,103110.0,103100.0,0.4306964]
[1746818284761,0.6547579,103110.0,103100.0,0.9946731]
[1746818285664,0.6547579,103110.0,103100.0,1.0097267]
[1746818286266,0.6547579,103110.0,103100.0,0.81575]
[1746818286766,0.6547579,103110.0,103100.0,0.7054536]
[1746818287464,0.7650543,103110.0,103100.0,0.6450536]
[1746818287661,1.2153507,103110.0,103100.0,0.26]
[1746818288174,1.2723243,103110.0,103100.0,0.11479517]
[1746818289265,1.1123243,103110.0,103100.0,0.11479517]
[1746818293766,1.1123243,103110.0,103100.0,0.14729517]
[1746818294174,1.1123243,103110.0,103100.0,0.30729517]
[1746818294867,1.1123243,103110.0,103100.0,0.27479517]
[1746818295777,1.2226207,103110.0,103100.0,0.27479517]
[1746818296178,1.2226207,103110.0,103100.0,0.11479517]
[1746818296372,1.1123243,103110.0,103100.0,0.11479517]
[1746818297071,1.2226207,103110.0,103100.0,0.11479517]
[1746818297671,1.1123243,103110.0,103100.0,0.11479517]
[1746818300368,1.2226207,103110.0,103100.0,0.11479517]
[1746818300571,1.1123243,103110.0,103100.0,0.11479517]
[1746818302371,1.2226207,103110.0,103100.0,0.11479517]
[1746818302567,1.2226207,103110.0,103100.0,0.04646557]
[1746818302772,0.1939767,103100.0,103090.0,0.174]
[1746818302979,1.5324095,103100.0,103090.0,0.174]
[1746818303171,1.5324095,103100.0,103090.0,0.014]
[1746818303773,1.5354095,103100.0,103090.0,0.014]
[1746818303974,1.5394095,103100.0,103090.0,0.014]
[1746818306076,1.5394095,103100.0,103090.0,0.174]
[1746818306782,1.5723095,103100.0,103090.0,0.174]
[1746818308383,1.5715895,103100.0,103090.0,0.174]
[1746818308580,1.5715895,103100.0,103090.0,0.2389]
[1746818308581,1.0608767,103100.0,103090.0,0.2389]
[1746818308783,1.3509967,103100.0,103090.0,0.2389]
[1746818308979,1.4289731,103100.0,103090.0,0.2389]
[1746818310975,1.5718695,103100.0,103090.0,0.2389]
[1746818311680,1.5718695,103100.0,103090.0,0.174]
[1746818312176,1.5718695,103100.0,103090.0,0.014]
[1746818314186,1.5718695,103100.0,103090.0,0.174]
[1746818315186,1.5718695,103100.0,103090.0,0.014]
[1746818315387,1.5718695,103100.0,103090.0,0.02883926]
[1746818316179,1.5718695,103100.0,103090.0,0.25353926]
[1746818321903,1.9326695,103100.0,103090.0,0.25353926]
[1746818322401,1.5319731,103100.0,103090.0,0.25353926]
[1746818322593,1.2747,103100.0,103090.0,0.55783116]
[1746818322793,1.0677767,103100.0,103090.0,0.57933116]
[1746818322993,1.0677767,103100.0,103090.0,0.74933116]
[1746818323195,0.8738,103100.0,103090.0,0.6241955]
[1746818323497,0.8738,103100.0,103090.0,0.7941955]
[1746818323803,0.9225767,103100.0,103090.0,1.34848581]
[1746818324702,0.9225767,103100.0,103090.0,1.09848581]
[1746818324903,0.5617767,103100.0,103090.0,1.09848581]
[1746818325103,0.5617767,103100.0,103090.0,2.59848581]
[1746818325794,0.5617767,103100.0,103090.0,2.65624102]
[1746818326602,0.5617767,103100.0,103090.0,2.48818941]
[1746818326805,0.5617767,103100.0,103090.0,2.65624102]
[1746818327906,0.5617767,103100.0,103090.0,2.55924502]
[1746818328201,0.5617767,103100.0,103090.0,2.65624102]
[1746818328601,0.5617767,103100.0,103090.0,1.15624102]
[1746818329101,0.5617767,103100.0,103090.0,0.98818941]
[1746818329303,0.5617767,103100.0,103090.0,1.15624102]